[Event "*** Titled Tuesday 3|2 Blitz"]
[Site "Chess.com"]
[Date "2015.06.02"]
[Round "9"]
[White "Cryptochess"]
[Black "lexiel"]
[Result "1-0"]
[WhiteElo "2370"]
[BlackElo "1937"]
[TimeControl "180+2"]
[EndTime "12:55:31 PDT"]
[Termination "Cryptochess won by checkmate"]

1. e4 {[%clk 0:03:01.9]} 1... d6 {[%clk 0:02:59.5]} 2. d4 {[%clk 0:03:00.3]}
2... Nf6 {[%clk 0:02:56.6]} 3. Nc3 {[%clk 0:02:56.9]} 3... c6 {[%clk 0:02:54.1]}
4. f4 {[%clk 0:02:56]} 4... Nbd7 {[%clk 0:02:52.7]} 5. Nf3 {[%clk 0:02:54.6]}
5... b5 {[%clk 0:02:45.2]} 6. e5 {[%clk 0:02:49.6]} 6... b4 {[%clk 0:02:42.3]}
7. exf6 {[%clk 0:02:35.8]} 7... bxc3 {[%clk 0:02:42.9]} 8. fxg7 {[%clk
0:02:37.4]} 8... Bxg7 {[%clk 0:02:39.6]} 9. bxc3 {[%clk 0:02:38.5]} 9... Nf6
{[%clk 0:02:37.2]} 10. Bd3 {[%clk 0:02:38.3]} 10... Bg4 {[%clk 0:02:33.1]} 11.
O-O {[%clk 0:02:31.9]} 11... h5 {[%clk 0:02:28.9]} 12. Re1 {[%clk 0:02:25.6]}
12... h4 {[%clk 0:02:28]} 13. h3 {[%clk 0:02:23.9]} 13... Bh5 {[%clk 0:02:25.2]}
14. Qe2 {[%clk 0:02:21.4]} 14... Rg8 {[%clk 0:02:16.5]} 15. Qf2 {[%clk
0:02:12.2]} 15... Bxf3 {[%clk 0:02:11.8]} 16. Qxf3 {[%clk 0:02:12.6]} 16... Qd7
{[%clk 0:02:08.1]} 17. f5 {[%clk 0:02:08.5]} 17... Nd5 {[%clk 0:02:07.1]} 18.
Bd2 {[%clk 0:02:07]} 18... Bf6 {[%clk 0:02:05.5]} 19. Rab1 {[%clk 0:01:45.4]}
19... Kd8 {[%clk 0:01:39.3]} 20. Be4 {[%clk 0:01:29.4]} 20... Rg3 {[%clk
0:01:38.6]} 21. Qh5 {[%clk 0:01:27.6]} 21... Nxc3 {[%clk 0:01:37.1]} 22. Bxc3
{[%clk 0:01:23.2]} 22... Rxc3 {[%clk 0:01:36.8]} 23. Qxf7 {[%clk 0:01:24.6]}
23... Bxd4+ {[%clk 0:01:34.2]} 24. Kh1 {[%clk 0:01:24.5]} 24... Kc7 {[%clk
0:01:29.5]} 25. f6 {[%clk 0:01:12.4]} 25... Bxf6 {[%clk 0:01:29.5]} 26. Qg6
{[%clk 0:00:55.1]} 26... Rxh3+ {[%clk 0:01:25.1]} 27. Kg1 {[%clk 0:00:51.5]}
27... Bd4+ {[%clk 0:01:24.4]} 28. Kf1 {[%clk 0:00:53.1]} 28... Rf8+ {[%clk
0:01:20.9]} 29. Ke2 {[%clk 0:00:51.6]} 29... Rg3 {[%clk 0:01:16.8]} 30. Qh5
{[%clk 0:00:46.7]} 30... Bb6 {[%clk 0:01:04.5]} 31. Bf3 {[%clk 0:00:37]} 31...
Rf5 {[%clk 0:00:58.1]} 32. Qxh4 {[%clk 0:00:32.7]} 32... Re5+ {[%clk 0:00:51.8]}
33. Kf1 {[%clk 0:00:30.7]} 33... Rgg5 {[%clk 0:00:51.7]} 34. Rxe5 {[%clk
0:00:28.6]} 34... Rxe5 {[%clk 0:00:53.6]} 35. Re1 {[%clk 0:00:29.9]} 35... Qf5
{[%clk 0:00:50.9]} 36. Rxe5 {[%clk 0:00:28.4]} 36... Qxe5 {[%clk 0:00:52.1]} 37.
Qe4 {[%clk 0:00:23.8]} 37... Qb5+ {[%clk 0:00:49.5]} 38. Ke1 {[%clk 0:00:19.7]}
38... Ba5+ {[%clk 0:00:42]} 39. Kf2 {[%clk 0:00:16.4]} 39... Qc5+ {[%clk
0:00:40.6]} 40. Kg3 {[%clk 0:00:16.8]} 40... e5 {[%clk 0:00:38.8]} 41. Qh7+
{[%clk 0:00:16.3]} 41... Kb6 {[%clk 0:00:40]} 42. Qd3 {[%clk 0:00:17]} 42...
Be1+ {[%clk 0:00:38.6]} 43. Kg4 {[%clk 0:00:14.1]} 43... Qf2 {[%clk 0:00:37.4]}
44. Qb3+ {[%clk 0:00:14]} 44... Kc7 {[%clk 0:00:31.9]} 45. Qf7+ {[%clk
0:00:14.4]} 45... Kb6 {[%clk 0:00:33.1]} 46. Qb3+ {[%clk 0:00:15.3]} 46... Kc7
{[%clk 0:00:26.3]} 47. Kf5 {[%clk 0:00:15.1]} 47... Qh4 {[%clk 0:00:23.8]} 48.
Qf7+ {[%clk 0:00:15.4]} 48... Kb6 {[%clk 0:00:24.3]} 49. Ke6 {[%clk 0:00:15.5]}
49... Qh6+ {[%clk 0:00:22.2]} 50. Kd7 {[%clk 0:00:15.7]} 50... d5 {[%clk
0:00:21.2]} 51. Qe7 {[%clk 0:00:12.9]} 51... e4 {[%clk 0:00:20.8]} 52. Qd8+
{[%clk 0:00:13.7]} 52... Kc5 {[%clk 0:00:21.6]} 53. Qe7+ {[%clk 0:00:12.1]}
53... Kd4 {[%clk 0:00:22.8]} 54. Bg4 {[%clk 0:00:09.6]} 54... Ba5 {[%clk
0:00:19.9]} 55. Bf5 {[%clk 0:00:06.3]} 55... c5 {[%clk 0:00:20.3]} 56. g4 {[%clk
0:00:06.2]} 56... Bd2 {[%clk 0:00:20]} 57. Be6 {[%clk 0:00:05.8]} 57... Qf4
{[%clk 0:00:20.3]} 58. Kc6 {[%clk 0:00:06]} 58... e3 {[%clk 0:00:20.8]} 59.
Qxc5+ {[%clk 0:00:07]} 59... Ke5 {[%clk 0:00:19.5]} 60. Qxd5+ {[%clk 0:00:08.9]}
60... Kf6 {[%clk 0:00:20.8]} 61. Bf5 {[%clk 0:00:10.4]} 61... e2 {[%clk
0:00:20.9]} 62. Qe6+ {[%clk 0:00:11.3]} 62... Kg5 {[%clk 0:00:22.1]} 63. Qxe2
{[%clk 0:00:12.4]} 63... Qa4+ {[%clk 0:00:23]} 64. Kd5 {[%clk 0:00:13]} 64...
Qxa2+ {[%clk 0:00:23.9]} 65. Kd4 {[%clk 0:00:13.7]} 65... Qa4+ {[%clk
0:00:24.2]} 66. c4 {[%clk 0:00:12.4]} 66... Bf4 {[%clk 0:00:24.9]} 67. Qe7+
{[%clk 0:00:12.6]} 67... Kh6 {[%clk 0:00:24.7]} 68. Qf6# {[%clk 0:00:13.7]} 1-0

[Event "*** Titled Tuesday 3|2 Blitz"]
[Site "Chess.com"]
[Date "2015.06.02"]
[Round "9"]
[White "kleinebeer98"]
[Black "MartinZumsande"]
[Result "1/2-1/2"]
[WhiteElo "2281"]
[BlackElo "2302"]
[TimeControl "180+2"]
[EndTime "12:56:37 PDT"]
[Termination "Game drawn by repetition"]

1. e4 {[%clk 0:03:01.9]} 1... e6 {[%clk 0:03:01.1]} 2. d4 {[%clk 0:03:02.4]}
2... d5 {[%clk 0:03:02.5]} 3. Nd2 {[%clk 0:03:03.9]} 3... Nf6 {[%clk 0:03:02.5]}
4. e5 {[%clk 0:03:03.8]} 4... Nfd7 {[%clk 0:03:03.6]} 5. f4 {[%clk 0:03:04.5]}
5... c5 {[%clk 0:03:04.5]} 6. Ngf3 {[%clk 0:03:06]} 6... Nc6 {[%clk 0:03:03.9]}
7. Nb3 {[%clk 0:03:07.2]} 7... a6 {[%clk 0:02:39.6]} 8. Be2 {[%clk 0:03:02.7]}
8... b5 {[%clk 0:02:40.3]} 9. Be3 {[%clk 0:02:58]} 9... c4 {[%clk 0:02:37.9]}
10. Nc5 {[%clk 0:02:55]} 10... Nxc5 {[%clk 0:02:36]} 11. dxc5 {[%clk 0:02:56.9]}
11... d4 {[%clk 0:02:11.8]} 12. Nxd4 {[%clk 0:02:50.2]} 12... Nxd4 {[%clk
0:02:05.4]} 13. Bxd4 {[%clk 0:02:41.5]} 13... Bb7 {[%clk 0:02:06.3]} 14. Bf3
{[%clk 0:02:41.6]} 14... Qc7 {[%clk 0:01:52.8]} 15. a4 {[%clk 0:02:33.3]} 15...
Rd8 {[%clk 0:01:48.6]} 16. axb5 {[%clk 0:02:18.2]} 16... Bxc5 {[%clk 0:01:48]}
17. c3 {[%clk 0:02:04.9]} 17... Bxf3 {[%clk 0:01:40.6]} 18. Qxf3 {[%clk
0:02:05.6]} 18... Bxd4 {[%clk 0:01:40.8]} 19. cxd4 {[%clk 0:02:05.7]} 19... axb5
{[%clk 0:01:41.8]} 20. O-O {[%clk 0:01:58.7]} 20... O-O {[%clk 0:01:42.4]} 21.
Rfd1 {[%clk 0:01:56.3]} 21... g6 {[%clk 0:01:32.2]} 22. h4 {[%clk 0:01:48.4]}
22... h5 {[%clk 0:01:32.1]} 23. Kh1 {[%clk 0:01:36.2]} 23... Qb6 {[%clk
0:01:27.3]} 24. d5 {[%clk 0:01:34.7]} 24... exd5 {[%clk 0:01:25.8]} 25. Rxd5
{[%clk 0:01:36.6]} 25... Rxd5 {[%clk 0:01:26.7]} 26. Qxd5 {[%clk 0:01:38.5]}
26... Qf2 {[%clk 0:01:28.1]} 27. Qxb5 {[%clk 0:01:27]} 27... Qxh4+ {[%clk
0:01:25.9]} 28. Kg1 {[%clk 0:01:28.4]} 28... Qxf4 {[%clk 0:01:26.5]} 29. Rf1
{[%clk 0:01:30]} 29... Qd4+ {[%clk 0:01:22.1]} 30. Kh1 {[%clk 0:01:28]} 30...
Rd8 {[%clk 0:01:14.8]} 31. e6 {[%clk 0:01:17.1]} 31... fxe6 {[%clk 0:01:11]} 32.
Qg5 {[%clk 0:01:16.4]} 32... Kg7 {[%clk 0:00:59.3]} 33. Qe7+ {[%clk 0:01:17.3]}
33... Kh6 {[%clk 0:01:00.4]} 34. Qxe6 {[%clk 0:01:18.3]} 34... Qh4+ {[%clk
0:00:54.6]} 35. Kg1 {[%clk 0:01:18.6]} 35... Qg5 {[%clk 0:00:47.9]} 36. Qxc4
{[%clk 0:01:15.8]} 36... Rd2 {[%clk 0:00:47]} 37. Qe4 {[%clk 0:00:49.7]} 37...
Rxb2 {[%clk 0:00:43.2]} 38. Qf3 {[%clk 0:00:46.4]} 38... Rb8 {[%clk 0:00:36.8]}
39. Rd1 {[%clk 0:00:43.3]} 39... h4 {[%clk 0:00:36.9]} 40. Rd5 {[%clk
0:00:40.7]} 40... Qc1+ {[%clk 0:00:30.9]} 41. Kh2 {[%clk 0:00:41.1]} 41... Qc7+
{[%clk 0:00:26.6]} 42. Kh1 {[%clk 0:00:25.5]} 42... Rb1+ {[%clk 0:00:24.3]} 43.
Rd1 {[%clk 0:00:26.7]} 43... Rxd1+ {[%clk 0:00:25]} 44. Qxd1 {[%clk 0:00:28.6]}
44... Qf4 {[%clk 0:00:26.2]} 45. Qd8 {[%clk 0:00:27.6]} 45... Kh5 {[%clk
0:00:22.1]} 46. Qh8+ {[%clk 0:00:27.8]} 46... Kg4 {[%clk 0:00:23.1]} 47. Qc8+
{[%clk 0:00:28.9]} 47... Qf5 {[%clk 0:00:21.8]} 48. Qc4+ {[%clk 0:00:23]} 48...
Kh5 {[%clk 0:00:22.2]} 49. Qg8 {[%clk 0:00:22.1]} 49... Qf1+ {[%clk 0:00:18.3]}
50. Kh2 {[%clk 0:00:22.5]} 50... Qf4+ {[%clk 0:00:20.2]} 51. Kh1 {[%clk
0:00:23.7]} 51... g5 {[%clk 0:00:21.4]} 52. Qh7+ {[%clk 0:00:23.1]} 52... Kg4
{[%clk 0:00:22.6]} 53. Qd7+ {[%clk 0:00:24.6]} 53... Kg3 {[%clk 0:00:21.4]} 54.
Qh3+ {[%clk 0:00:22.4]} 54... Kf2 {[%clk 0:00:22.2]} 55. Qc3 {[%clk 0:00:19.4]}
55... g4 {[%clk 0:00:21.8]} 56. Qb2+ {[%clk 0:00:18.7]} 56... Kf1 {[%clk
0:00:22.4]} 57. Qb1+ {[%clk 0:00:19]} 57... Ke2 {[%clk 0:00:23.2]} 58. Qb5+
{[%clk 0:00:19.2]} 58... Kf2 {[%clk 0:00:23.2]} 59. Qb2+ {[%clk 0:00:19.8]}
59... Ke3 {[%clk 0:00:23.6]} 60. Qc1+ {[%clk 0:00:20.7]} 60... Ke4 {[%clk
0:00:24.8]} 61. Qc4+ {[%clk 0:00:22]} 61... Kf5 {[%clk 0:00:25.7]} 62. Qd5+
{[%clk 0:00:23.5]} 62... Qe5 {[%clk 0:00:25.9]} 63. Qd7+ {[%clk 0:00:23.3]}
63... Kf4 {[%clk 0:00:26.2]} 64. Qd2+ {[%clk 0:00:23.1]} 64... Kg3 {[%clk
0:00:23.7]} 65. Qd3+ {[%clk 0:00:23.8]} 65... Kf2 {[%clk 0:00:23.7]} 66. Qd2+
{[%clk 0:00:20.5]} 66... Qe2 {[%clk 0:00:20.5]} 67. Qf4+ {[%clk 0:00:20.8]}
67... Ke1 {[%clk 0:00:21.6]} 68. Qc1+ {[%clk 0:00:21.6]} 68... Qd1 {[%clk
0:00:23]} 69. Qe3+ {[%clk 0:00:22.6]} 69... Kf1 {[%clk 0:00:24.4]} 70. Qf4+
{[%clk 0:00:20.1]} 70... Ke2+ {[%clk 0:00:25.2]} 71. Kh2 {[%clk 0:00:21.1]}
71... g3+ {[%clk 0:00:26.6]} 72. Kh3 {[%clk 0:00:22.6]} 72... Qh1+ {[%clk
0:00:28.3]} 73. Kg4 {[%clk 0:00:24.1]} 73... Qxg2 {[%clk 0:00:29.9]} 74. Qc4+
{[%clk 0:00:24]} 74... Kf2 {[%clk 0:00:30.7]} 75. Qd4+ {[%clk 0:00:24.1]} 75...
Kf1 {[%clk 0:00:31.6]} 76. Qd1+ {[%clk 0:00:25.2]} 76... Kf2 {[%clk 0:00:33]}
77. Qd4+ {[%clk 0:00:26.4]} 77... Ke2 {[%clk 0:00:34.1]} 78. Qb2+ {[%clk
0:00:26.6]} 78... Kf1 {[%clk 0:00:35.4]} 79. Qc1+ {[%clk 0:00:27.6]} 79... Kf2
{[%clk 0:00:36.6]} 80. Qc5+ {[%clk 0:00:27.7]} 80... Ke1 {[%clk 0:00:37.1]} 81.
Qc1+ {[%clk 0:00:28.1]} 81... Ke2 {[%clk 0:00:38.3]} 82. Qc2+ {[%clk 0:00:28]}
82... Kf1 {[%clk 0:00:39.5]} 83. Qd1+ {[%clk 0:00:29.1]} 83... Kf2 {[%clk
0:00:40.6]} 84. Qd4+ {[%clk 0:00:30.4]} 84... Ke1 {[%clk 0:00:38.2]} 85. Qa1+
{[%clk 0:00:31]} 85... Kf2 {[%clk 0:00:39.2]} 86. Qd4+ {[%clk 0:00:32]} 86...
Ke1 {[%clk 0:00:40.2]} 87. Qa1+ {[%clk 0:00:33]} 87... Ke2 {[%clk 0:00:41.6]}
88. Qb2+ {[%clk 0:00:32.7]} 88... Kf1 {[%clk 0:00:42.7]} 89. Qc1+ {[%clk
0:00:33.6]} 89... Kf2 {[%clk 0:00:43.6]} 90. Qc5+ {[%clk 0:00:34.7]} 90... Ke1
{[%clk 0:00:42.4]} 91. Qc1+ {[%clk 0:00:35.5]} 91... Ke2 {[%clk 0:00:43.1]} 92.
Qc2+ {[%clk 0:00:35.4]} 92... Kf1 {[%clk 0:00:44]} 93. Qd1+ {[%clk 0:00:36.7]}
93... Kf2 {[%clk 0:00:44.5]} 1/2-1/2